fUSD/lending_fUSD_20240702
["ID","MTS","AMOUNT","RATE_DAILY","PERIOD"]
[330897425,1719927065753,-500.0,0.00022465,4]
[330897426,1719927065762,-500.0,0.00022465,4]
[330897427,1719927065772,-3560.71894211,0.00022465,4]
[330897428,1719927065836,-6973.38564092,0.00022465,4]
[330897429,1719927065848,-1333.99856731,0.00022465,4]
[330897430,1719927065863,-2846.80684966,0.00022465,4]
[330897431,1719927065875,-305.01,0.00022465,4]
[330897432,1719927065885,-14714.91,0.00022465,4]
[330897433,1719927065895,-1024.30931046,0.00022465,4]
[330897434,1719927065908,-7754.31846085,0.00022465,4]
[330897435,1719927065920,-5936.28222869,0.00022465,4]
[330897436,1719927065928,-500.0,0.00022465,4]
[330897437,1719927065939,-501.1445751,0.00022465,4]
[330897438,1719927065948,-567.74,0.00022465,4]
[330897439,1719927065958,-14714.91,0.00022465,4]
[330897440,1719927065968,-14714.91,0.00022465,4]
[330897441,1719927065978,-510.23462759,0.00022465,4]
[330897442,1719927065988,-14714.91,0.00022465,4]
[330897443,1719927065999,-500.0,0.00022465,4]
[330897444,1719927066009,-500.0,0.00022465,4]
[330897445,1719927066018,-500.0,0.00022465,4]
[330897446,1719927066028,-500.0,0.00022465,4]
[330897447,1719927066037,-14714.91,0.00022465,4]
[330897448,1719927066047,-500.0,0.00022465,4]
[330897449,1719927066056,-500.0,0.00022465,4]
[330897450,1719927066066,-15995.1,0.00022465,4]
[330897451,1719927066075,-14714.91,0.00022465,4]
[330897452,1719927066085,-500.0,0.00022465,4]
[330897453,1719927066095,-500.0,0.00022465,4]
[330897454,1719927066104,-500.0,0.00022465,4]
[330897455,1719927066113,-15995.1,0.00022465,4]
[330897456,1719927066123,-500.0,0.00022465,4]
[330897457,1719927066133,-500.0,0.00022465,4]
[330897458,1719927066143,-14714.91,0.00022465,4]
[330897459,1719927066153,-500.0,0.00022465,4]
[330897460,1719927066164,-500.0,0.00022465,4]
[330897461,1719927066173,-500.0,0.00022465,4]
[330897462,1719927066183,-15995.1,0.00022465,4]
[330897463,1719927066192,-500.0,0.00022465,4]
[330897464,1719927066202,-242.11089747,0.00022465,4]
[330897465,1719927066211,-500.0,0.00022465,4]
[330897466,1719927066220,-14714.91,0.00022465,4]
[330897467,1719927066229,-500.0,0.00022465,4]
[330897468,1719927066240,-15995.1,0.00022465,4]
[330897469,1719927066249,-500.0,0.00022465,4]
[330897470,1719927066259,-500.0,0.00022465,4]
[330897471,1719927066269,-14714.91,0.00022465,4]
[330897472,1719927066279,-500.0,0.00022465,4]
[330897473,1719927066288,-500.0,0.00022465,4]
[330897474,1719927066298,-15995.1,0.00022465,4]
[330897475,1719927066307,-500.0,0.00022465,4]
[330897476,1719927066316,-14714.91,0.00022465,4]
[330897477,1719927066325,-500.0,0.00022465,4]
[330897478,1719927066334,-500.0,0.00022465,4]
[330897479,1719927066344,-15995.1,0.00022465,4]
[330897480,1719927066353,-500.0,0.00022465,4]
[330897481,1719927066363,-580.8254718,0.00022465,4]
[330897482,1719927066372,-500.0,0.00022465,4]
[330897483,1719927066381,-500.0,0.00022465,4]
[330897484,1719927066390,-14714.91,0.00022465,4]
[330897485,1719927066400,-500.0,0.00022465,4]
[330897486,1719927066410,-15995.1,0.00022465,4]
[330897487,1719927066419,-500.0,0.00022465,4]
[330897488,1719927066428,-499.49,0.00022465,4]
[330897489,1719927066437,-14714.91,0.00022465,4]
[330897490,1719927066446,-500.0,0.00022465,4]
[330897491,1719927066455,-500.0,0.00022465,4]
[330897492,1719927066464,-15995.1,0.00022465,4]
[330897493,1719927066474,-500.0,0.00022465,4]
[330897494,1719927066483,-526.54,0.00022465,4]
[330897495,1719927066492,-14714.91,0.00022465,4]
[330897496,1719927066501,-500.0,0.00022465,4]
[330897497,1719927066510,-15995.1,0.00022465,4]
[330897498,1719927066519,-500.0,0.00022465,4]
[330897499,1719927066528,-640.21,0.00022465,4]
[330897500,1719927066537,-600.78986416,0.00022465,4]
[330897501,1719927066547,-14714.91,0.00022465,4]
[330897502,1719927066556,-15995.1,0.00022465,4]
[330897503,1719927066566,-602.96518766,0.00022465,4]
[330897504,1719927066575,-14714.91,0.00022465,4]
[330897505,1719927066585,-500.0,0.00022465,4]
[330897506,1719927066596,-15995.1,0.00022465,4]
[330897507,1719927066607,-316.99,0.00022465,4]
[330897508,1719927066619,-500.0,0.00022465,4]
[330897509,1719927066629,-14714.91,0.00022465,4]
[330897510,1719927066639,-15995.1,0.00022465,4]
[330897511,1719927066648,-500.0,0.00022465,4]
[330897512,1719927066660,-500.0,0.00022465,4]
[330897513,1719927066670,-500.0,0.00022465,4]
[330897514,1719927066682,-500.0,0.00022465,4]
[330897515,1719927066691,-500.0,0.00022465,4]
[330897516,1719927066700,-169.2,0.00022465,4]
[330897517,1719927066709,-15995.1,0.00022465,4]
[330897518,1719927066718,-14714.91,0.00022465,4]
[330897519,1719927066728,-500.0,0.00022465,4]
[330897520,1719927066737,-500.0,0.00022465,4]
[330897521,1719927066747,-500.0,0.00022465,4]
[330897522,1719927066757,-14714.91,0.00022465,4]
[330897523,1719927066767,-15995.1,0.00022465,4]
[330897524,1719927066777,-500.0,0.00022465,4]
[330897525,1719927066788,-500.0,0.00022465,4]
[330897526,1719927066797,-15995.1,0.00022465,4]
[330897527,1719927066807,-14714.91,0.00022465,4]
[330897528,1719927066817,-15995.1,0.00022465,4]
[330897529,1719927066826,-500.0,0.00022465,4]
[330897530,1719927066835,-14714.91,0.00022465,4]
[330897531,1719927066844,-500.0,0.00022465,4]
[330897532,1719927066854,-15995.1,0.00022465,4]
[330897533,1719927066864,-500.0,0.00022465,4]
[330897534,1719927066873,-500.0,0.00022465,4]
[330897535,1719927066883,-502.6724115,0.00022465,4]
[330897536,1719927066893,-500.0,0.00022465,4]
[330897537,1719927066904,-256.85,0.00022465,4]
[330897538,1719927066914,-500.0,0.00022465,4]
[330897539,1719927066923,-14714.91,0.00022465,4]
[330897540,1719927066934,-15995.1,0.00022465,4]
[330897541,1719927066944,-504.42649198,0.00022465,4]
[330897542,1719927066954,-500.0,0.00022465,4]
[330897543,1719927066964,-580.42,0.00022465,4]
[330897544,1719927066975,-15995.1,0.00022465,4]
[330897545,1719927066984,-14715.01,0.00022465,4]
[330897546,1719927066994,-15995.1,0.00022465,4]
[330897547,1719927067004,-502.42390947,0.00022465,4]
[330897548,1719927067013,-2028.76710297,0.00022465,4]
[330897549,1719927067023,-15995.1,0.00022465,4]
[330897550,1719927067032,-10504.08423782,0.00022465,4]
[330897551,1719927067058,-1466.79589,0.00022465,4]
[330897552,1719927067230,-151.0,0.0001778,2]
[330897553,1719927067240,-151.0,0.00019,2]
[330897554,1719927067250,-151.0,0.00020484,2]
[330897555,1719927067260,-272.2950575,0.00022465,4]
[330897556,1719927067271,-515.14099998,0.00022465,4]
[330897557,1719927067282,-2900.52315067,0.00022465,4]
[330897558,1719927067361,-2016.69421926,0.000139,2]
[330897559,1719927067373,-768.38344718,0.000139,2]
[330897560,1719927067382,-486.013,0.0001778,2]
[330897561,1719927067392,-553.0,0.00018535,2]
[330897562,1719927067401,-336.26066403,0.00022465,4]
[330897563,1719927067414,-4806.06995865,0.00022465,4]
[330897564,1719927067426,-7440.027946,0.00022465,4]
[330897565,1719927067437,-3749.00209535,0.00022465,4]
[330897566,1719927067446,-3700.66401481,0.00022465,4]
[330897567,1719927067458,-1464.85394051,0.00022465,4]
[330897568,1719927067469,-500.0,0.00022465,4]
[330897569,1719927067480,-2340.52740496,0.00022465,4]
[330897570,1719927067525,-7989.05463973,0.00022465,4]
[330897571,1719927067534,-500.0,0.00022465,4]
[330897572,1719927067544,-509.85,0.00022465,4]
[330897573,1719927067553,-500.0,0.00022465,4]
[330897574,1719927067563,-500.0,0.00022465,4]
[330897575,1719927067571,-500.0,0.00022465,4]
[330897576,1719927067581,-500.0,0.00022465,4]
[330897577,1719927067593,-500.0,0.00022465,4]
[330897578,1719927067603,-499.05,0.00022465,4]
[330897579,1719927067613,-500.0,0.00022465,4]
[330897580,1719927067624,-500.0,0.00022465,4]
[330897581,1719927067634,-500.0,0.00022465,4]
[330897582,1719927067643,-500.0,0.00022465,4]
[330897583,1719927067652,-500.0,0.00022465,4]
[330897584,1719927067663,-500.0,0.00022465,4]
[330897585,1719927067673,-500.0,0.00022465,4]
[330897586,1719927067685,-500.0,0.00022465,4]
[330897587,1719927067694,-500.0,0.00022465,4]
[330897588,1719927067703,-500.0,0.00022465,4]
[330897589,1719927067712,-501.03887239,0.00022465,4]
[330897590,1719927067721,-500.0,0.00022465,4]
[330897591,1719927067730,-500.0,0.00022465,4]
[330897592,1719927067739,-330.92,0.00022465,4]
[330897593,1719927067748,-551.59911725,0.00022465,4]
[330897594,1719927067757,-500.0,0.00022465,4]
[330897595,1719927067766,-500.0,0.00022465,4]
[330897596,1719927067776,-501.66464169,0.00022465,4]
[330897597,1719927067785,-500.0,0.00022465,4]
[330897598,1719927067794,-500.0,0.00022465,4]
[330897599,1719927067803,-192.95103617,0.00022465,4]
[330897600,1719927067812,-500.0,0.00022465,4]
[330897601,1719927067820,-289.49588632,0.00022465,4]
[330897602,1719927067835,-210.50411368,0.00022465,4]
[330897603,1719927067844,-500.0,0.00022465,4]
[330897604,1719927067853,-500.0,0.00022465,4]
[330897605,1719927067862,-500.0,0.00022465,4]
[330897606,1719927067871,-500.0,0.00022465,4]
[330897607,1719927067880,-500.0,0.00022465,4]
[330897608,1719927067889,-271.55,0.00022465,4]
[330897609,1719927067899,-500.0,0.00022465,4]
[330897610,1719927067911,-500.0,0.00022465,4]
[330897611,1719927067920,-500.0,0.00022465,4]
[330897612,1719927067929,-448.9970829,0.00022465,4]
[330897613,1719927067941,-51.0029171,0.00022465,4]
[330897614,1719927067950,-480.4020829,0.00022465,4]
[330897615,1719927067961,-19.5979171,0.00022465,4]
[330897616,1719927067971,-500.0,0.00022465,4]
[330897617,1719927067980,-500.0,0.00022465,4]
[330897618,1719927067990,-483.45,0.00022465,4]
[330897619,1719927068000,-500.0,0.00022465,4]
[330897620,1719927068009,-500.0,0.00022465,4]
[330897621,1719927068018,-500.0,0.00022465,4]
[330897622,1719927068028,-500.0,0.00022465,4]
[330897623,1719927068037,-500.0,0.00022465,4]
[330897624,1719927068046,-551.37,0.00022465,4]
[330897625,1719927068057,-500.0,0.00022465,4]
[330897626,1719927068066,-500.0,0.00022465,4]
[330897627,1719927068075,-500.0,0.00022465,4]
[330897628,1719927068084,-503.56164901,0.00022465,4]
[330897629,1719927068094,-500.0,0.00022465,4]
[330897630,1719927068103,-461.32,0.00022465,4]
[330897631,1719927068113,-500.0,0.00022465,4]
[330897632,1719927068123,-500.0,0.00022465,4]
[330897633,1719927068132,-500.0,0.00022465,4]
[330897634,1719927068141,-500.0,0.00022465,4]
[330897635,1719927068150,-500.0,0.00022465,4]
[330897636,1719927068163,-395.9,0.00022465,4]
[330897637,1719927068172,-500.0,0.00022465,4]
[330897638,1719927068181,-500.0,0.00022465,4]
[330897639,1719927068190,-380.92,0.00022465,4]
[330897640,1719927068198,-500.0,0.00022465,4]
[330897641,1719927068209,-405.09,0.00022465,4]
[330897642,1719927068219,-500.0,0.00022465,4]
[330897643,1719927068228,-500.0,0.00022465,4]
[330897644,1719927068237,-444.6056352,0.00022465,4]
[330897645,1719927068246,-500.0,0.00022465,4]
[330897646,1719927068256,-500.0,0.00022465,4]
[330897647,1719927068265,-500.0,0.00022465,4]
[330897648,1719927068274,-500.0,0.00022465,4]
[330897649,1719927068282,-500.0,0.00022465,4]
[330897650,1719927068291,-500.0,0.00022465,4]
[330897651,1719927068300,-500.0,0.00022465,4]
[330897652,1719927068309,-500.0,0.00022465,4]
[330897653,1719927068318,-500.0,0.00022465,4]
[330897654,1719927068328,-500.0,0.00022465,4]
[330897655,1719927068336,-500.0,0.00022465,4]
[330897656,1719927068348,-500.0,0.00022465,4]
[330897657,1719927068357,-501.66122142,0.00022465,4]
[330897658,1719927068366,-631.74,0.00022465,4]
[330897659,1719927068375,-379.21047934,0.00022465,4]
[330897660,1719927068391,-120.78952066,0.00022465,4]
[330897661,1719927068400,-500.0,0.00022465,4]
[330897662,1719927068412,-500.0,0.00022465,4]
[330897663,1719927068421,-500.0,0.00022465,4]
[330897664,1719927068430,-280.38047934,0.00022465,4]
[330897665,1719927068441,-223.08574647,0.00022465,4]
[330897666,1719927068450,-440.51425352,0.00022465,4]
[330897667,1719927068462,-59.48574648,0.00022465,4]
[330897668,1719927068471,-500.0,0.00022465,4]
[330897669,1719927068481,-416.57653084,0.00022465,4]
[330897670,1719927068493,-83.42346916,0.00022465,4]
[330897671,1719927068504,-411.76211578,0.00022465,4]
[330897672,1719927068515,-88.23788422,0.00022465,4]
[330897673,1719927068525,-186.44936974,0.00022465,4]
[330897674,1719927250633,-305.42303826,0.00013472,2]
[330897675,1719927250658,-227.09542874,0.00013472,2]
[330897676,1719927250683,-300.0,0.00013999,2]
[330897677,1719927250714,-262.481533,0.00014,2]
[330897681,1719927565878,227.09542874,0.00011199,2]
[330897686,1719927852291,19613.70069678,0.00011199,2]
[330897687,1719927866732,4713.24960871,0.00011199,2]
[330897688,1719927903088,18225.23079513,0.00011199,2]
[330897689,1719928023894,227.09542874,0.00011199,2]
[330897690,1719928038186,3023.727209,0.00011199,2]
[330897700,1719928133163,1254.1632468,0.00011199,2]
[330897704,1719928165351,10537.00283536,0.00011199,2]
[330897707,1719928200689,155.0,0.00011199,2]
[330897708,1719928212525,328.62827887,0.00011199,2]
[330897716,1719928231774,-378.31889351,0.00012273,2]
[330897717,1719928231783,-155.0,0.00012302,2]
[330897718,1719928231793,-305.42303826,0.00012302,2]
[330897719,1719928231802,-339.45186376,0.00012314,2]
[330897720,1719928231812,-156.4774398,0.00012314,2]
[330897721,1719928231821,-264.40040348,0.00012314,2]
[330897722,1719928231830,-410.32610846,0.00013128,2]
[330897723,1719928231843,-600.0,0.00013128,2]
[330897724,1719928231854,-1000.0,0.00013128,2]
[330897725,1719928231867,-265.7623622,0.00013128,2]
[330897726,1719928231879,-2375.74966593,0.00013128,2]
[330897727,1719928231888,-2198.85723835,0.00013128,2]
[330897728,1719928231897,-412.03672268,0.00013472,2]
[330897729,1719928231907,-227.09542874,0.00013516,2]
[330897730,1719928231916,-1329.43311787,0.00013516,2]
[330897731,1719928231926,-1012.87391772,0.00013516,2]
[330897732,1719928231935,-523.65374717,0.00013516,2]
[330897733,1719928231944,-150.0,0.00013534,2]
[330897734,1719928231954,-1269.62890364,0.00013574,2]
[330897735,1719928231964,-23483.35395692,0.00014,2]
[330897736,1719928231983,-2159.97449723,0.00014,2]
[330897737,1719928231995,-697.11121979,0.00014,2]
[330897738,1719928232007,-3578.37736849,0.00014,2]
[330897739,1719928232019,-112600.85598839,0.00014,2]
[330897740,1719928232070,-753.90051878,0.00014,2]
[330897746,1719928238640,-1391.33325677,0.00014,2]
[330897747,1719928238652,-1163.382,0.00014,2]
[330897748,1719928238665,-224765.3534626,0.00014,2]
[330897749,1719928238679,-1556.34,0.00014,2]
[330897750,1719928238689,-1458.35370028,0.00014966,2]
[330897751,1719928238699,-499.99,0.00015335,2]
[330897752,1719928238918,-150.99,0.00015335,2]
[330897753,1719928238989,-995.83,0.00015479,2]
[330897754,1719928239000,-24712.91105223,0.00015535,2]
[330897755,1719928239010,-269.0,0.000161,3]
[330897757,1719928239023,-500.0,0.00016392,2]
[330897758,1719928239034,-11482.0,0.000164,5]
[330897759,1719928239044,-14172.05,0.00016648,2]
[330897760,1719928239056,-19975.48437642,0.00017561,2]
[330897761,1719928239067,-882.05,0.0001765,2]
[330897762,1719928239078,-506.52,0.00017815,2]
[330897763,1719928239089,-1399.3,0.00017932,3]
[330897764,1719928239099,-2493.91059926,0.00018081,2]
[330897765,1719928239109,-19975.48437642,0.00018315,2]
[330897766,1719928239119,-443.0,0.00018627,2]
[330897767,1719928239133,-738.329,0.00018627,2]
[330897768,1719928239142,-1069.0,0.00018627,2]
[330897769,1719928239152,-150.0,0.00018745,2]
[330897770,1719928239163,-250.0,0.00018748,2]
[330897771,1719928239172,-173.35,0.0001875,2]
[330897772,1719928239181,-238.94,0.00018849,30]
[330897773,1719928239190,-19975.48437642,0.00019068,2]
[330897774,1719928239200,-250.0,0.00019178,2]
[330897775,1719928239210,-250.0,0.00019563,2]
[330897776,1719928239220,-19975.48437642,0.00019822,2]
[330897777,1719928239230,-882.05,0.00019856,2]
[330897778,1719928239240,-1000.0,0.00019922,2]
[330897779,1719928239250,-544.56604372,0.00019997,2]
[330897780,1719928239259,-24709.67822565,0.0002,2]
[330897781,1719928239270,-506.52,0.00020079,2]
[330897782,1719928239284,-19975.48437642,0.00020576,2]
[330897784,1719928239295,-95862.062655,0.000208,3]
[330897786,1719928239309,-2315.70204193,0.000208,3]
[330897787,1719928239321,-17463.10267543,0.000208,3]
[330897788,1719928239333,-605.61078592,0.000208,3]
[330897789,1719928239346,-700.40708654,0.000208,3]
[330897790,1719928239358,-10739.80001077,0.000208,3]
[330897791,1719928239371,-835.77,0.000208,3]
[330897792,1719928239388,-4955.89852639,0.000208,3]
[330897793,1719928239402,-1887.86213843,0.000208,3]
[330897794,1719928239414,-406.46916604,0.000208,3]
[330897795,1719928239429,-28595.34813619,0.000208,3]
[330897796,1719928239442,-30963.59706,0.000208,3]
[330897797,1719928239455,-14964.55090836,0.000208,3]
[330897798,1719928239466,-500.0,0.00020832,2]
[330897799,1719928239476,-200.02130861,0.00021,2]
[330897800,1719928239485,-203.15956,0.00021,2]
[330897801,1719928239495,-5534.11003135,0.0002106,3]
[330897802,1719928239506,-5618.5037356,0.0002107,2]
[330897803,1719928239516,-5534.11003135,0.0002132,3]
[330897804,1719928239526,-463.11883097,0.0002133,2]
[330897805,1719928239538,-19512.36554545,0.0002133,2]
[330897806,1719928239548,-500.0,0.00021559,2]
[330897807,1719928239558,-200.0,0.00021559,2]
[330897808,1719928239567,-1000.0,0.000219,2]
[330897809,1719928239579,-7500.0,0.000219,2]
[330897810,1719928239589,-318.36,0.000219,2]
[330897811,1719928239599,-500.0,0.00021917,2]
[330897812,1719928239609,-681.26,0.00021918,2]
[330897813,1719928239619,-150.14,0.00021918,2]
[330897814,1719928239630,-156.59,0.00021918,2]
[330897815,1719928239640,-152.15,0.00021918,2]
[330897816,1719928239649,-938.28795108,0.00021962,2]
[330897817,1719928239659,-8579.55369075,0.00021962,2]
[330897818,1719928239679,-1434.48378075,0.00021962,2]
[330897819,1719928239689,-179.97604362,0.00021962,2]
[330897820,1719928239699,-4539.43617563,0.00022,7]
[330897821,1719928239711,-539.00383144,0.00022,7]
[330897822,1719928239723,-45719.13836054,0.00022,7]
[330897823,1719928239779,-0.07826483,0.00022,7]
[330897825,1719928239955,-2848.36038083,0.00022,7]
[330897826,1719928240030,-114691.61567847,0.00022,7]
[330897827,1719928240044,-15220.07698024,0.00022,7]
[330897828,1719928240055,-213.13886997,0.00022,5]
[330897829,1719928240069,-154717.93189211,0.00022,4]
[330897830,1719928240083,-1107.38013244,0.00022,4]
[330897831,1719928240096,-8708.97670485,0.00022,4]
[330897832,1719928240109,-745.83403878,0.00022,4]
[330897833,1719928240121,-303.78677249,0.00022,4]
[330897834,1719928240240,-86780.78830315,0.00022,4]
[330897835,1719928240252,-475.2125,0.00022,4]
[330897836,1719928240264,-46246.54202288,0.00022,4]
[330897837,1719928240392,-1032.75,0.00022,4]
[330897839,1719928243522,-436.0661831,0.00022,4]
[330897840,1719928243534,-11786.98145673,0.00022,4]
[330897841,1719928243546,-19196.45667874,0.00022,4]
[330897842,1719928243558,-7177.7,0.00022,4]
[330897843,1719928243569,-460.56973873,0.00022,4]
[330897844,1719928243580,-1075.18,0.00022,4]
[330897846,1719928243591,-2556.58178938,0.00022,4]
[330897864,1719928243760,-12376.67581954,0.00022,4]
[330897871,1719928243772,-3843.32882048,0.00022,4]
[330897889,1719928243976,-154943.48377521,0.00022,4]
[330897890,1719928243990,-913154.39389713,0.00022,4]
[330897891,1719928244002,-1058.55765,0.00022,4]
[330897892,1719928244013,-2930.15933922,0.00022,4]
[330897893,1719928244025,-500.0,0.00022,4]
[330897894,1719928244036,-647.90308088,0.00022,4]
[330897895,1719928244047,-682.52581,0.00022,4]
[330897896,1719928244061,-457.46955249,0.00022,4]
[330897897,1719928244073,-1381.05676272,0.00022,4]
[330897898,1719928244085,-7062.5,0.00022,4]
[330897899,1719928244098,-305.3305634,0.00022,4]
[330897900,1719928244109,-9901.98761922,0.00022,4]
[330897901,1719928244120,-1243.700005,0.00022,4]
[330897902,1719928244185,-494.62071346,0.00022,4]
[330897903,1719928244196,-9430.45802053,0.00022,4]
[330897904,1719928244208,-670.14303817,0.00022,4]
[330897905,1719928244219,-47996.71351942,0.00022,4]
[330897906,1719928244230,-5359.24038792,0.00022,4]
[330897907,1719928244242,-1036035.16310047,0.00022,4]
[330897908,1719928244253,-145152.809282,0.00022,4]
[330897909,1719928244264,-3520.05617788,0.00022,4]
[330897928,1719928245940,-227.09542874,0.00013472,2]
[330897929,1719928245950,-41058.21951187,0.00022,4]
[330897930,1719928245961,-28412.58664306,0.00022,4]
[330897931,1719928245977,-2535.44900344,0.00022,4]
[330897932,1719928245988,-18953.50087886,0.00022,4]
[330897934,1719928246000,-17140.91276986,0.00022,4]
[330897947,1719928246116,-2156.39078202,0.00022,4]
[330897949,1719928246131,-2532.01049383,0.00022,4]
[330897951,1719928246143,-851.41252935,0.00022,4]
[330897953,1719928246154,-2445.96787027,0.00022,4]
[330897955,1719928246168,-959.66047797,0.00022,4]
[330897957,1719928246179,-658.00621157,0.00022,4]
[330897959,1719928246191,-856.20926424,0.00022,4]
[330897968,1719928246298,-205.93114439,0.00013574,2]
[330897970,1719928246307,-98107.15376401,0.00022,4]
[330897972,1719928246318,-5177.5175671,0.00022,4]
[330897974,1719928246330,-6856.4783008,0.00022,4]
[330897976,1719928246342,-747.40697802,0.00022,4]
[330897979,1719928246354,-505.14,0.00022,4]
[330897981,1719928246365,-292.064,0.00022,4]
[330897982,1719928246377,-343.17574675,0.00022,4]
[330897983,1719928246488,-542.53107426,0.00022,4]
[330897984,1719928246500,-470.22347517,0.00022,4]
[330898030,1719928539643,1133.92751376,0.00011199,2]
[330898031,1719928565746,860.22500001,0.00011199,2]
[330898032,1719928613236,705.0,0.00011199,2]
[330898033,1719928615647,651.64585719,0.00011199,2]
[330898035,1719928631167,518.04242089,0.00011199,2]
[330898037,1719928664307,597.80485648,0.00011199,2]
[330898040,1719928675201,533.17716908,0.00011199,2]
[330898041,1719928683796,458.93602576,0.00011199,2]
[330898042,1719928687400,253.90432169,0.00011199,2]
[330898046,1719928708765,212.39466898,0.00011199,2]
[330898049,1719928715289,155.0,0.00011199,2]
[330898057,1719928878451,227.09542874,0.00011199,2]
[330898059,1719928951566,91364.53652216,0.00011199,2]
[330898061,1719928981785,6338.79338768,0.000221,120]
[330898062,1719928982355,279.32775313,0.00011199,2]
[330898063,1719928988592,226.97769319,0.00011199,2]
[330898066,1719929027902,155.35310403,0.00011199,2]
[330898067,1719929038775,201.23980782,0.00011199,2]
[330898090,1719929202106,1269.62890364,0.00011199,2]
[330898092,1719929208051,717.72673364,0.00011199,2]
[330898106,1719929280067,1329.43311787,0.00011199,2]
[330898108,1719929292327,1012.87391772,0.00011199,2]
[330898133,1719929432068,-227.09542874,0.00012273,2]
[330898134,1719929432078,-412.03672268,0.00012273,2]
[330898135,1719929432088,-218.11784858,0.00013128,2]
[330898136,1719929432099,-2157.63181735,0.00013128,2]
[330898137,1719929432109,-2198.85723835,0.00013472,2]
[330898138,1719929432118,-265.7623622,0.00013472,2]
[330898139,1719929432127,-716.64579254,0.00013516,2]
[330898140,1719929432136,-215.63343809,0.00013543,2]
[330898141,1719929432146,-600.05,0.00016401,2]
[330898142,1719929432155,-153.53,0.00016793,2]
[330898143,1719929432165,-300.0,0.00016799,2]
[330898144,1719929432176,-3119.0,0.000168,2]
[330898145,1719929432190,-828.0,0.000168,2]
[330898146,1719929432200,-250.0,0.00016856,2]
[330898147,1719929432210,-8275.76121297,0.00016888,2]
[330898148,1719929432223,-2857.98116985,0.00016888,2]
[330898149,1719929432236,-684.71908266,0.00016888,2]
[330898150,1719929432248,-34100.20868903,0.00016888,2]
[330898151,1719929432258,-153.53,0.00016938,2]
[330898152,1719929432268,-500.0,0.00016995,2]
[330898153,1719929432278,-2493.91059926,0.00017,2]
[330898154,1719929432288,-150.99,0.00017,2]
[330898155,1719929432298,-585.63069521,0.00017,2]
[330898156,1719929432309,-990.97042334,0.00017,2]
[330898157,1719929432338,-541.0092199,0.00017,2]
[330898158,1719929432351,-663.65966155,0.00017,2]
[330898159,1719929432362,-6.28159068,0.00017052,2]
[330898160,1719929432374,-154.29840932,0.00017052,2]
[330898161,1719929432387,-499.99,0.00017052,2]
[330898162,1719929432399,-6067.56,0.00017052,2]
[330898163,1719929432410,-1589.88151861,0.00017074,2]
[330898164,1719929432423,-438.97877864,0.00017074,2]
[330898165,1719929432445,-722.13970275,0.00017074,2]
[330898166,1719929432455,-143.32058542,0.00017084,2]
[330898167,1719929432467,-10.20941458,0.00017084,2]
[330898168,1719929432477,-492.69781437,0.00017146,2]
[330898169,1719929432490,-1306.42218563,0.00017146,2]
[330898170,1719929432499,-224.99,0.00017146,2]
[330898171,1719929432508,-1340.26171979,0.00017199,2]
[330898172,1719929432518,-153.53,0.0001723,2]
[330898174,1719929432528,-1000.0,0.00017289,2]
[330898176,1719929432538,-153.53,0.00017376,2]
[330898178,1719929432549,-10000.0,0.00017437,2]
[330898181,1719929432559,-153.53,0.00017522,2]
[330898183,1719929432570,-153.53,0.00017668,2]
[330898185,1719929432581,-920.59,0.00017717,2]
[330898187,1719929432591,-250.0,0.00017774,2]
[330898188,1719929432601,-178.76,0.00017806,2]
[330898189,1719929432611,-4130.87,0.00017841,2]